Cogmind - Beta 16.1 @@@ ROGUE MODE // 2026.03.26 @ 21:46:09 Player: KURIIRI Result: Self-destructed Performance ------------- Evolutions (0) 0 Regions Visited (3) 600 Robots Destroyed (41) 205 Value Destroyed (1181) 1181 Prototype IDs (15) 300 Alien Tech Used (0) 0 Bonus (0) 0 TOTAL SCORE: 2286 Bonus ------- None Cogmind --------- Core Integrity 161/250 Matter 300/300 Energy 200/200 System Corruption 0% Temperature Warm (186) Movement Rolling (120) Ox1 Location -7/Recycling Parts ------- > --- POWER (1) -------- Subdweller Power Source > --- PROPULSION (2) --- Subdweller Monowheel > --- UTILITY (2) ------ Medium Storage Unit Subdweller Optics > --- WEAPON (2) ------- Subdweller Beam Cannon Subdweller Machine Gun > --- INVENTORY (10) --- Ion Engine Light Treads Gun Armor Scrap Shield Makeshift Laser Subdweller Machine Gun Grenade Launcher Multitool Peak State ------------ > --- POWER ------------ Ion Engine > --- PROPULSION ------- Light Treads Light Treads > --- UTILITY ---------- Scrap Shield > --- WEAPON ----------- Makeshift Laser Subdweller Beam Cannon > --- INVENTORY -------- Compact Wheel Machine Analyzer Gun Armor Light Assault Rifle Grenade Launcher [Rating: 14] Favorites ----------- Power Ion Engine Engine Ion Engine Propulsion Light Treads Treads Light Treads Leg Aluminum Leg Wheel Compact Wheel Utility Scrap Shield Device Tractor Beam Storage Medium Storage Unit Protection Scrap Shield Weapon Subdweller Beam Cannon Energy Gun Makeshift Laser Energy Cannon Subdweller Beam Cannon Ballistic Gun Light Assault Rifle Launcher Grenade Launcher Build | -11 -10 -10 -7 ------- Run | Yrd Mat Sub Rec Slots Evolved . | . . . . Power . | . . . . Propulsion . | . . . . Utility . | . . . . Weapon . | . . . . Parts Attached 19 | 1 7 11 . Power 1 | . . 1 . Engine 1 | . . 1 . Core . | . . . . Reactor . | . . . . Propulsion 5 | . 2 3 . Treads 3 | . 2 1 . Leg . | . . . . Wheel 2 | . . 2 . Hover . | . . . . Flight . | . . . . Utility 5 | 1 2 2 . Device 3 | 1 1 1 . Storage 1 | . 1 . . Processor . | . . . . Hackware . | . . . . Protection 1 | . . 1 . Artifact . | . . . . Weapon 8 | . 3 5 . Energy Gun 1 | . . 1 . Energy Cannon 3 | . 1 2 . Ballistic Gun 3 | . 1 2 . Ballistic Cannon . | . . . . Launcher 1 | . 1 . . Special Weapon . | . . . . Impact Weapon . | . . . . Slashing Weapon . | . . . . Piercing Weapon . | . . . . Special Melee Weapon . | . . . . Unidentified Prototypes . | . . . . Parts Lost 2 | . . 1 1 Power . | . . . . Propulsion 2 | . . 1 1 Utility . | . . . . Weapon . | . . . . Highest Loss Streak 1 | . . 1 1 To Critical Strikes . | . . . . Average Backups 5 | 6 6 5 8 Power . | 1 1 . 1 Propulsion 1 | 4 3 1 1 Utility 1 | . . 1 2 Weapon 2 | 1 1 2 3 Tool/Special . | . . . . Unused Backups 14 | . 5 7 2 Power 2 | . 1 1 . Propulsion 5 | . 2 3 . Utility 4 | . 1 2 1 Weapon 2 | . 1 1 . Tool/Special 1 | . . . 1 Average Slot Usage (%) 88 | . 99 84 100 Engine 14 | . 14 14 14 Treads 23 | . 27 21 . Wheel 4 | . . 6 28 Device 4 | . 14 1 14 Storage 5 | . 14 2 14 Protection 8 | . . 11 . Energy Gun 4 | . . 5 . Energy Cannon 16 | . 12 18 14 Ballistic Gun 4 | . 13 1 14 Peak Build Rating 14 | 7 7 14 14 Average Rating 10 | 6 6 11 13 On Entrance 8 | 6 7 7 14 Avg Prop Armor Cover (%) 7 | . . 7 . Naked Turns . | . . . . Heaviest Build 39 | 13 20 39 29 Greatest Support 40 | 20 40 40 20 Greatest Overweight (x) 2 | . . 2 1 Average Overweight (x) . | . . . 1 Largest Inventory Capacity 10 | 8 10 10 10 Average Capacity 6 | 8 8 5 10 Most Carried 10 | 6 8 10 9 Average Carried 5 | 6 6 5 9 Final Capacity 10 | 8 10 10 10 Final Carried 9 | 6 8 9 9 Class Distribution -------------------- 77% | Mutant 22% | Subdweller-Mutant Dominant Class ---------------- Mutant | -10/Materials Mutant | -10/Subcaves Mutant | -7/Recycling Resources | -11 -10 -10 -7 ----------- Run | Yrd Mat Sub Rec Matter Collected 750 | 224 318 195 13 Remotely 323 | 24 299 . . Salvage Created 1545 | 82 711 683 69 Parts 80 | 6 37 36 1 Haulers Intercepted 2 | . 2 . . Recyclers Shooed 2 | 1 1 . . Parts Field Recycled . | . . . . Retrieved Matter . | . . . . Parts Self-Destructed 17 | . . 17 . Prevented . | . . . . Parts Restored . | . . . . Kills | -11 -10 -10 -7 ------- Run | Yrd Mat Sub Rec Combat Hostiles Destroyed 30 | . 14 15 1 Guns 2 | . 1 1 . Cannons 17 | . 8 9 . AOE 8 | . 5 3 . Classes Destroyed 12 | 2 5 4 1 Worker 1 | . 1 . . Builder 1 | . 1 . . Tunneler 1 | 1 . . . Hauler 2 | . 2 . . Recycler 2 | 1 1 . . Turret 2 | . . 2 . Watcher 2 | . 2 . . Swarmer 5 | . . 5 . Grunt 16 | . 14 2 . Sentry 1 | . . . 1 Artisan 1 | . . 1 . Subdweller 8 | . . 8 . Best Kill Streak 8 | 2 8 3 1 Combat Bots Only 6 | . 6 3 1 Max Kills in Single Turn 3 | 1 2 3 1 Gunslinging . | . . . . Exploded 3 | . 1 3 . Melee . | . . . . Uniques/NPCs Destroyed . | . . . . Combat | -11 -10 -10 -7 -------- Run | Yrd Mat Sub Rec Hostile Shots Fired 160 | . 43 90 27 Missed 54 | . 6 38 10 Hits 106 | . 37 52 17 Projectile 106 | . 37 52 17 Damage Taken 1084 | . 451 518 115 Core 89 | . 55 8 26 Absorbed by Shields . | . . . . Regen/Repaired (Parts) 51 | . 51 . . Core Remaining (%) 100 | 100 . . . Volleys Fired 114 | 7 52 51 4 Largest 2 | 2 2 2 2 Hottest 160 | 40 90 160 110 Shots Fired 203 | 14 88 93 8 Gun 60 | 14 31 11 4 Cannon 131 | . 47 80 4 Launcher 12 | . 10 2 . Special . | . . . . Kinetic 59 | 14 31 10 4 Thermal 132 | . 47 81 4 Explosive 12 | . 10 2 . Electromagnetic . | . . . . Robot Hit Streak 8 | 7 6 7 8 Robot Miss Streak 2 | 2 2 1 . Penetration Max . | . . . . Secondary Targets . | . . . . Shots Hit Robots 108 | 9 53 39 7 Core Hits 60 | 4 33 22 1 Critical Kills 3 | . . 2 1 Critical Parts Destroyed 1 | . 1 . . Critical Strikes 4 | . 1 2 1 Meltdown 3 | . . 2 1 Destroy 1 | . 1 . . Melee Attacks . | . . . . Impact . | . . . . Slashing . | . . . . Piercing . | . . . . Sneak Attacks . | . . . . Combat Hostiles . | . . . . Follow-up Attacks . | . . . . Damage Inflicted 2687 | 72 1267 1169 179 Guns 330 | 72 141 46 71 Cannons 1648 | . 646 894 108 Explosions 695 | . 466 229 . Melee . | . . . . Ramming 14 | . 14 . . Kinetic 330 | 72 141 46 71 Thermal 1648 | . 646 894 108 Explosive 695 | . 466 229 . Electromagnetic . | . . . . Impact . | . . . . Slashing . | . . . . Piercing . | . . . . Highest Corruption . | . . . . Average Corruption . | . . . . Corruption Purged . | . . . . Corruption Blocked . | . . . . Overload Shots . | . . . . Overflow Damage 14 | . . 14 . Projectiles 14 | . . 14 . Explosions . | . . . . Melee . | . . . . Knockbacks . | . . . . Impact . | . . . . Kinetic . | . . . . Secondary . | . . . . Self-Inflicted Damage . | . . . . Shots . | . . . . Rammed 5 | . 5 . . Targets Rammed 5 | . 5 . . Kicked . | . . . . Crushed . | . . . . Highest Temperature 346 | . 346 246 240 Average Temperature 100 | . 119 71 142 Received Heat Transfer 498 | . 249 225 24 Effects 1 | . . 1 . Energy Bleed 1 | . . 1 . Siege Activations . | . . . . Martial Activations . | . . . . Shielding Activations . | . . . . Robots Disrupted . | . . . . Combat Hostiles . | . . . . Robots Corrupted . | . . . . Combat Hostiles . | . . . . Parts Fried . | . . . . Impact Corruptions . | . . . . Robots Melted 3 | . . 2 1 Combat Hostiles 3 | . . 2 1 Parts Melted 7 | . 1 4 2 Heat Transferred 2775 | . 1369 1258 148 Parts Sabotaged . | . . . . Parts Stolen . | . . . . Parts Stripped . | . . . . Power Chain Reactions . | . . . . Alert | -11 -10 -10 -7 ------- Run | Yrd Mat Sub Rec Maximum Alert Level 1 | . 1 . . Low Security (%) 68 | 100 66 . 100 Level 1 31 | . 33 . . Level 2 . | . . . . Level 3 . | . . . . Level 4 . | . . . . Level 5 . | . . . . High Security . | . . . . Max Security . | . . . . Peak Influence 275 | 5 275 . 56 Initial 46 | . 3 . 46 Average 146 | 3 153 . 49 Influence Increases 859 | 10 554 275 20 Destroy 0b10 Robot/C 480 | . 280 180 20 Destroy 0b10 Robot/NC 45 | 10 35 . . Destroy Leader 88 | . 68 20 . Successful Hack 24 | . 24 . . Select Force Hacks 60 | . 60 . . Disable Machine 60 | . 60 . . Destroy Structure 27 | . 27 . . Lose Combat Pursuer 75 | . . 75 . Influence Decreases 803 | 5 343 394 61 Entered New Map 157 | . 2 104 51 Time Decay 626 | 5 341 280 . Lost Part 20 | . . 10 10 Squads Dispatched 3 | . 3 . . Investigation 2 | . 2 . . Extermination . | . . . . Reinforcement 1 | . 1 . . Assault . | . . . . Garrison . | . . . . Intercept . | . . . . Searches Triggered . | . . . . Construction Impeded . | . . . . Haulers Reinforced . | . . . . Active Scanning Responses . | . . . . Cargo Convoy Interrupts . | . . . . Stealth | -11 -10 -10 -7 --------- Run | Yrd Mat Sub Rec Distress Signals 1 | . 1 . . Communications Jammed . | . . . . Distress Signals . | . . . . Times Spotted 51 | . 28 22 1 Peak Tracking Total 6 | . 5 6 1 Tactical Retreats 2 | . . 2 . Traps | -11 -10 -10 -7 ------- Run | Yrd Mat Sub Rec Traps Triggered . | . . . . Indirectly . | . . . . Trap Hack Attempts . | . . . . Triggered . | . . . . Disarmed . | . . . . Reprogrammed . | . . . . Reused . | . . . . Traps Extracted . | . . . . Installed . | . . . . Triggered . | . . . . Machines | -11 -10 -10 -7 ---------- Run | Yrd Mat Sub Rec Machines Disabled 6 | . 4 2 . Max in Single Turn 1 | . 1 1 . Machines Repaired . | . . . . Machines Dismantled . | . . . . Machines Sabotaged . | . . . . Overloaded Fab Kills . | . . . . Hacking | -11 -10 -10 -7 --------- Run | Yrd Mat Sub Rec Machines Accessed 11 | . 9 2 . Terminals 6 | . 6 . . Fabricators . | . . . . Repair Stations 1 | . 1 . . Recycling Units 2 | . 2 . . Scanalyzers . | . . . . Garrison Access . | . . . . Total Hacks 27 | . 22 5 . Successful 17 | . 12 5 . Failed 10 | . 10 . . Catastrophic 2 | . 2 . . Database Lockouts . | . . . . Manual 17 | . 17 . . Terminals 18 | . 18 . . Fabricators . | . . . . Repair Stations 2 | . 2 . . Recycling Units 2 | . 2 . . Scanalyzers . | . . . . Garrison Access . | . . . . Terminal Hacks 7 | . 2 5 . Record 4 | . . 4 . Prototype ID Bank 1 | . 1 . . Locate Traps 1 | . 1 . . Proto ID Catalog 1 | . . 1 . Fabricator Hacks . | . . . . Repair Station Hacks 2 | . 2 . . Scan Component 1 | . 1 . . Repair 1 | . 1 . . Recycling Unit Hacks . | . . . . Scanalyzer . | . . . . Garrison Access Hacks . | . . . . Unauthorized Hacks 8 | . 8 . . Terminals 6 | . 6 . . Botnet 2 | . 2 . . Skim 4 | . 4 . . Fabricators . | . . . . Repair Stations . | . . . . Recycling Units 2 | . 2 . . Tunnel 2 | . 2 . . Scanalyzers . | . . . . Garrison Access . | . . . . Data Cores Recovered . | . . . . Used . | . . . . Hacking Detections 6 | . 6 . . Full Trace Events . | . . . . Feedback Events . | . . . . Feedback Blocked . | . . . . Robot Schematics Acquired . | . . . . Robots Built . | . . . . Authchips . | . . . . Time . | . . . . Total Robot Build Rating . | . . . . Part Schematics Acquired . | . . . . Parts Built . | . . . . Authchips . | . . . . Time . | . . . . Total Part Build Rating . | . . . . Part Studies Acquired . | . . . . Parts Repaired 1 | . 1 . . Time 26 | . 26 . . Parts Recycled . | . . . . Recycled Matter . | . . . . Retrieved Matter . | . . . . Retrieved Components . | . . . . Parts Scanalyzed . | . . . . Part Schematics Acquired . | . . . . Parts Damaged . | . . . . Bothacking | -11 -10 -10 -7 ------------ Run | Yrd Mat Sub Rec Used RIF Installer . | . . . . Robots Hacked . | . . . . Non-combat . | . . . . Combat . | . . . . Robot Hacks Applied . | . . . . Relay Couplers Released . | . . . . Fabnet Peak Effective % . | . . . . Robots Rewired . | . . . . Allies Hacked . | . . . . Hacks Repelled . | . . . . Allies | -11 -10 -10 -7 -------- Run | Yrd Mat Sub Rec Total Allies . | . . . . Largest Group . | . . . . Highest-Rated Group . | . . . . Highest-Rated Ally . | . . . . Total Orders . | . . . . Ally Attacks . | . . . . Total Damage . | . . . . Kills . | . . . . Allies Corrupted . | . . . . Allies Melted . | . . . . Intel | -11 -10 -10 -7 ------- Run | Yrd Mat Sub Rec Active Infowar (turns) 569 | . 188 364 17 Optics 111 | . . 94 17 Structural 458 | . 188 270 . Robot Analysis Total . | . . . . Derelict Logs Recovered 1 | . . 1 . Drone Launches . | . . . . Drone Recoveries . | . . . . Exploration | -11 -10 -10 -7 ------------- Run | Yrd Mat Sub Rec Turns Passed 4155 | 36 1042 3060 17 Spaces Moved 2283 | 14 517 1750 2 Core . | . . . . Treads 1323 | . 517 806 . Legs 14 | 14 . . . Wheels 946 | . . 944 2 Hover . | . . . . Flight . | . . . . Fastest Speed 105 | 120 160 105 120 Average Speed 144 | 120 160 139 120 Slowest Speed 240 | 120 160 240 120 Overloaded Moves . | . . . . Propulsion Burnouts . | . . . . Robots Hopped . | . . . . Potential Cave-ins . | . . . . Cave-ins Triggered . | . . . . Exploration Rate (%) 44 | 2 91 82 2 Regions Visited 3 Branch Regions 2 Pre-discovered Areas 4 | . 2 2 . Known Exits Taken . | . . . . Unknown Exits Taken 3 | 1 1 1 . Scrap Searched 10 | . . 10 . Spaces Dug 6 | . . 6 . Terrain Destroyed 43 | . 29 14 . Melee . | . . . . Projectile 11 | . . 11 . AOE 32 | . 29 3 . Terrain Rammed . | . . . . Walls Destroyed . | . . . . Machines Disabled . | . . . . Actions | -11 -10 -10 -7 --------- Run | Yrd Mat Sub Rec Total 2945 | 21 646 2270 8 Wait 482 | . 56 424 2 Move 2280 | 13 516 1749 2 Hop . | . . . . Pick Up 15 | . 5 10 . Fast Attach 6 | 1 . 5 . Attach 5 | . 2 3 . Detach . | . . . . Swap 16 | . 7 9 . Drop 14 | . 3 11 . Fire 114 | 7 52 51 4 Melee . | . . . . Ram . | . . . . Kick . | . . . . Crush 5 | . 5 . . Escape Stasis . | . . . . Rewire . | . . . . Trap . | . . . . Miscellaneous 8 | . . 8 . Route ------- -11/Scrapyard -10/Materials (discovered 5 exits: [*Mat x3] / [*Min] / *Sub) -10/Subcaves (discovered 3 exits: [*Mat x2] / [*Rec]) -7/Recycling History --------- Turn | Location | Event 12 | -11/Scrapyard | Discovered new exit (range 2) 37 | -11/Scrapyard | Entered Materials 184 | -10/Materials | Discovered new exit (range 12) 275 | -10/Materials | Discovered new exit (range 10) 303 | -10/Materials | Build established: Mutant 552 | -10/Materials | Discovered new exit (range 15) 766 | -10/Materials | Discovered new exit (range 11) 855 | -10/Materials | Repaired Grenade Launcher 1057 | -10/Materials | Discovered new exit (range 10) 1079 | -10/Materials | Entered Subcaves 1080 | -10/Subcaves | A swath of the cavern ceiling suddenly collapsed 1080 | -10/Subcaves | Approached by a straggling Scientist 1113 | -10/Subcaves | Shifting Twisted Machinery released Sub. Monowheel 1120 | -10/Subcaves | Shifting Twisted Machinery released Barrage Gun 1651 | -10/Subcaves | Visited 4L-MR0's lab 1668 | -10/Subcaves | Found Gun Armor 1747 | -10/Subcaves | A swath of the cavern ceiling suddenly collapsed 2296 | -10/Subcaves | Shifting Twisted Machinery released Riot Gun 2324 | -10/Subcaves | Discovered new exit (range 15) 2374 | -10/Subcaves | Discovered new exit (range 11) 2696 | -10/Subcaves | Disturbed a concealed Subdweller 2898 | -10/Subcaves | Build established: Subdweller-Mutant 2908 | -10/Subcaves | Disturbed a concealed Subdweller 3085 | -10/Subcaves | Ambushed by angry Subdweller bent on revenge 3154 | -10/Subcaves | Disturbed a concealed Subdweller 3507 | -10/Subcaves | Visited Clippyterm 3511 | -10/Subcaves | Learned location of Section 7 (-2) 3572 | -10/Subcaves | Discovered new exit (range 7) 3881 | -10/Subcaves | Build established: Mutant 4139 | -10/Subcaves | Entered Recycling 4156 | -7/Recycling | Self-destructed Last Messages --------------- 03803_ Acquired Med. Storage Unit. 03806_ Acquired Scrap Shield. 03986_ Acquired 10 matter. 04040_ Acquired Sub. Machine Gun. 04044_ Acquired Sub. Optics. 04046_ Acquired 10 matter. 04063_ Subatomizers dissect the Humpback. 04066_ Acquired 10 matter. 04068_ Acquired Sub. Monowheel. 04091_ Subatomizers dissect the Humpback. 04122_ Acquired 10 matter. LOCATION=UNKNOWN GOAL=ESCAPE 04142_ Y-54 Guardian springs to life. 04150_ Com. Wheel destroyed. 04150_ Y-54 Guardian suffers critical hit (Meltdown). 04150_ Imp. Heat Sink melted. 04150_ Gatling Laser melted. 04155_ Acquired 13 matter. Map ----- +----------------------------------------------------+ | ??????????????????????????? | | ??????????????????????????? | | ??????????????????????????? | | ??????????????????????????? | | ??????????????????????????? | | ??????????????????????????? | | ??????????????????????????? | | ??????????????????????????? | | ??????????????????????????? | | ??????????????????????????? | | ??????????????????????????? | | ??????????????????????????? | | ??????????????????????????? | | ??????????????????????????? | | ??????????????????????????? | | ??????????????????????????? | | ??????????????????????????? | | ??????????????????????????? | | ??????????????????????????? | | ??????????????????????????? | | ??????????????????????????? | | ?#####????????????????????? | | ?# #????????????????????? | | ?# #????????????????????? | | ?#! #????????????????????? | | ?#@ #????????????????????? | | # #????????????????????? | | ## #????????????????????? | | ?# #????????????????????? | | ?# #????????????????????? | | ?# +????????????????????? | | ?# #????????????????????? | | ?# #????????????????????? | | ?# #????????????????????? | | ?# #????????????????????? | | ?# #????????????????????? | | ?# #????????????????????? | | ?# #????????????????????? | | ?# #????????????????????? | | ?# #????????????????????? | | ?? #????????????????????? | | ?? #????????????????????? | | ?? #????????????????????? | | ?? #????????????????????? | | ?? ?????????????????????? | | ?? ?????????????????????? | | ??????????????????????????? | | ??????????????????????????? | | ??????????????????????????? | | ??????????????????????????? | +----------------------------------------------------+ Best States ------------- Heat Dissipation 25 Energy Generation 15 Energy Capacity 250 Matter Stores 300 Matter Capacity 300 Sight Range 21 Terrain Scan Density 10 Armor Coverage 800 Evasion (%) 50 Recoil Reduction 2 Item Schematics ----------------- None Robot Schematics ------------------ None Fabricated ------------ Nothing Repaired ---------- Grenade Launcher | 15% | -10/Materials Studied --------- None Alien Tech Used ----------------- None Achievements -------------- None Challenges ------------ None Game ------ Seed LaserStealthChip Manual? 0 Play Time 00:19:10 Cumulative 364.5 hours Start 2026.03.26 @ 21:14:15 End 2026.03.26 @ 21:46:09 Sessions 1 Manual Loads 0 Difficulty Rogue Special Mode None Game No. 294 Rogue 258 Adventurer 36 Explorer 0 Win Type - Total 5 Types 2/0/0/1/0/0/0/2/0/0 Lore% 67 Gallery% 64 Achievement% 51 Wizard Run 0 Options --------- Layout 1 ASCII 0 Keyboard 0 Movement Numpad Keybinds 0 Fullscreen 1 Font 48/Smallcaps Map View 50x35 Zoom Use 0% Tactical HUD 1 Map Filters NONE Filters NONE Steam 1 RUN: a7308f23-1fbb-4acf-b343-8309df02d26a